bitfinex-derivatives/quotes_ETHF0:USTF0_20250702
["timestamp","ask_amount","ask_price","bid_price","bid_amount"]
[1751488016104,0.77125,2591.5,2591.2,2.7456]
[1751488016301,3.33341625,2591.3,2591.0,2.5162]
[1751488016502,0.77137,2591.1,2591.0,3.2876]
[1751488016900,1.92844,2591.1,2590.7,0.77147]
[1751488017205,0.77148,2590.8,2590.7,0.77147]
[1751488017402,4.10486625,2590.9,2590.8,0.77146]
[1751488018004,6.07123,2591.0,2590.9,0.77143]
[1751488018303,0.77146,2590.9,2590.8,0.77144]
[1751488020103,5.2998,2591.0,2590.6,2.5697]
[1751488020402,0.77147,2590.8,2590.7,0.77146]
[1751488020702,4.10486625,2590.9,2590.8,0.77146]
[1751488021006,0.77147,2590.8,2590.7,0.77147]
[1751488022506,0.77149,2590.7,2590.6,3.34121]
[1751488023210,6.43826,2591.4,2590.6,3.34121]
[1751488023211,4.51002,2591.4,2590.7,1.92872]
[1751488023514,4.51002,2591.4,2590.9,0.77141]
[1751488023515,0.77141,2591.0,2590.9,0.77141]
[1751488023812,1.81949101,2591.0,2590.9,0.77141]
[1751488024310,0.77141,2591.0,2590.9,0.77141]
[1751488024512,0.7714,2591.1,2591.0,0.77139]
[1751488024702,0.7714,2591.1,2590.6,10.38127625]
[1751488024703,0.77137,2591.2,2591.1,0.77137]
[1751488024910,4.3812797,2591.2,2590.7,2.5422]
[1751488025210,0.77143,2591.0,2590.9,0.77141]
[1751488025407,0.77139,2591.1,2591.0,0.77137]
[1751488026411,0.77136,2591.2,2591.1,0.77135]
[1751488026709,1.81911754,2591.2,2591.1,0.77135]
[1751488026910,0.77139,2591.1,2591.0,0.77138]
[1751488027507,0.77135,2591.2,2591.1,0.77133]
[1751488027703,0.77134,2591.3,2591.2,0.77132]
[1751488027903,1.81921943,2591.3,2591.2,0.77132]
[1751488028102,0.77137,2591.2,2591.1,0.77135]
[1751488028303,0.77137,2591.1,2591.0,3.43028]
[1751488028704,0.7714,2591.0,2590.9,0.77141]
[1751488028904,6.75661625,2591.0,2590.9,0.77141]
[1751488029107,6.75661625,2591.0,2590.7,2.6589]
[1751488029311,3.33341625,2590.8,2590.4,2.7731]
[1751488029519,4.10496625,2590.6,2590.5,0.77152]
[1751488031613,0.77159,2590.5,2590.4,0.77156]
[1751488032605,2.6747,2590.9,2590.3,3.33341625]
[1751488032805,3.44617,2590.9,2590.8,0.77146]
[1751488033015,4.49565156,2590.9,2590.8,0.77146]
[1751488033215,3.44617,2590.9,2590.8,0.77146]
[1751488033408,5.3593,2591.1,2590.7,7.86361625]
[1751488033613,17.2947,2591.1,2591.0,0.7714]
[1751488033815,15.64266665,2591.1,2591.0,0.7714]
[1751488034411,0.77144,2591.0,2590.9,0.77142]
[1751488034610,1.82080665,2591.0,2590.9,0.77142]
[1751488036816,1.04936665,2591.0,2590.9,0.77142]
[1751488037217,1.82076665,2591.0,2590.9,0.77142]
[1751488037417,2.6579,2591.1,2591.0,0.7714]
[1751488037613,3.70786006,2591.1,2591.0,0.7714]
[1751488038415,4.47925006,2591.1,2591.0,0.7714]
[1751488038616,3.70786006,2591.1,2591.0,0.7714]
[1751488038808,3.44306,2591.2,2590.8,1.92862]
[1751488038809,3.44306,2591.2,2591.1,0.77137]
[1751488039013,4.49323624,2591.2,2591.1,0.77137]
[1751488040016,7.82665249,2591.2,2591.1,0.77137]
[1751488046114,1.05017624,2591.2,2591.1,4.10478625]
[1751488046520,1.05017624,2591.2,2591.1,0.77137]
[1751488047221,4.38359249,2591.2,2591.1,0.77137]
[1751488047721,1.82151624,2591.2,2591.1,0.77137]
[1751488048518,1.05017624,2591.2,2591.1,0.77137]
[1751488051521,1.09953154,2591.2,2591.1,0.77137]
[1751488052314,1.09953154,2591.2,2591.1,4.10478625]
[1751488052520,11.164,2591.6,2591.5,0.77125]
[1751488052721,12.21710903,2591.6,2591.5,0.77125]
[1751488055022,15.55052528,2591.6,2591.5,0.77125]
[1751488056624,16.32174528,2591.6,2591.5,0.77125]
[1751488057021,7.10152528,2591.6,2591.5,0.77125]
[1751488057221,7.87274528,2591.6,2591.5,0.77125]
[1751488057423,7.10152528,2591.6,2591.5,0.77125]
[1751488057727,7.87274528,2591.6,2591.5,0.77125]
[1751488058925,7.10152528,2591.6,2591.5,0.77125]
[1751488059125,7.87274528,2591.6,2591.5,0.77125]
[1751488060121,2.29840996,2592.1,2591.7,1.92796]
[1751488060423,0.77109,2592.1,2592.0,0.7711]
[1751488060626,0.77113,2592.0,2591.9,0.77111]
[1751488060824,4.10454625,2592.0,2591.9,0.77111]
[1751488063223,0.7712,2591.8,2591.7,0.77116]
[1751488063427,4.10461625,2591.8,2591.7,0.77116]
[1751488066526,0.77122,2591.7,2591.6,0.7712]
[1751488067932,0.77128,2591.5,2591.4,0.77124]
[1751488068628,3.31868,2591.5,2591.4,0.77124]
[1751488072031,0.77131,2591.4,2591.3,0.77129]
[1751488072227,1.81277439,2591.4,2591.3,0.77129]
[1751488072728,5.14619064,2591.4,2591.3,0.77129]
[1751488072927,7.79299064,2591.4,2591.3,0.77129]
[1751488073831,7.79296064,2591.4,2591.3,0.77129]
[1751488075830,1.04146439,2591.4,2591.3,0.77129]
[1751488076130,0.7712,2591.7,2591.6,0.77122]
[1751488076331,1.04203814,2591.7,2591.6,0.77122]
[1751488077325,1.81322814,2591.7,2591.6,0.77122]
[1751488077534,1.04203814,2591.7,2591.6,0.77122]
[1751488078433,1.04203814,2591.7,2591.6,3.49372]
[1751488088636,3.30215,2591.9,2591.8,0.77116]
[1751488088837,1.81379166,2591.9,2591.8,0.77116]
[1751488090336,1.04264166,2591.9,2591.8,0.77116]
[1751488091336,1.04264166,2591.9,2591.8,3.31666]
[1751488093140,3.27974,2592.3,2592.2,0.77104]
[1751488093335,1.04419634,2592.3,2592.2,0.77104]
[1751488093542,1.81520634,2592.3,2592.2,0.77104]
[1751488094738,2.29840996,2592.8,2592.4,1.92744]
[1751488094938,1.04386772,2592.7,2592.6,0.77093]
[1751488095139,11.89784,2592.9,2592.8,0.77087]
[1751488095339,11.127,2592.9,2592.8,0.77087]
[1751488095539,11.89784,2592.9,2592.8,0.77087]
[1751488097837,14.49334,2592.9,2592.8,0.77087]
[1751488099640,5.3776,2593.0,2592.9,0.77084]
[1751488099839,6.14841,2593.0,2592.9,0.77084]
[1751488101544,4.10420625,2593.1,2593.0,0.77081]
[1751488102645,0.77084,2593.0,2592.9,0.77082]
[1751488103245,0.77084,2593.0,2592.9,0.7708]
[1751488103246,0.77083,2593.0,2592.9,0.7708]
[1751488103446,6.66204625,2593.0,2592.9,0.7708]
[1751488104847,3.32863,2593.0,2592.9,0.7708]
[1751488105153,6.66204625,2593.0,2592.9,0.7708]
[1751488105446,0.77089,2592.8,2592.7,0.77085]
[1751488106242,0.3853,2597.0,2592.9,3.864]
[1751488106540,338.425,2600.1,2595.7,1.925]
[1751488106541,19.264,2598.2,2595.7,1.925]
[1751488106847,3.82498053,2598.4,2596.9,1.13409051]
[1751488107047,19.2592,2598.9,2598.3,6.6668325]
[1751488107345,19.54067291,2598.9,2598.0,3.33341625]
[1751488107547,19.2456,2598.8,2598.5,3.33341625]
[1751488107846,19.2456,2598.8,2598.7,3.33341625]
[1751488108048,29.68589981,2598.8,2598.7,3.33341625]
[1751488108242,2.7197,2599.4,2598.7,3.33341625]
[1751488108439,19.2376,2599.3,2598.9,0.76903]
[1751488108741,22.57101625,2599.3,2599.0,0.1202272]
[1751488108942,22.57101625,2599.3,2598.2,1.13409051]
[1751488108943,19.2384,2598.7,2598.2,1.13409051]
[1751488109141,23.37976258,2598.7,2598.5,0.76915]
[1751488109341,1.99479861,2598.7,2598.6,2.20342347]
[1751488109545,1.99479861,2598.7,2598.6,2.97257347]
[1751488109745,23.38216258,2598.6,2598.2,1.51212069]
[1751488109949,4.14136258,2598.4,2598.3,2.8500095]
[1751488110247,2.7197,2599.4,2598.8,0.76909]
[1751488110446,2.7197,2599.4,2598.3,1.53907149]
[1751488110447,19.2392,2599.3,2598.9,2.65341882]
[1751488110649,6.8992402,2599.1,2598.5,1.48610835]
[1751488110942,6.8992402,2599.0,2598.6,1.53898471]
[1751488111143,23.37976258,2598.6,2598.5,2.25527835]
[1751488111343,23.37976258,2598.6,2597.9,6.8992402]
[1751488111544,4.14136258,2598.0,2597.9,0.76935]
[1751488112049,23.38696258,2598.0,2597.6,0.35245245]
[1751488112251,4.14136258,2597.7,2597.6,0.76944]
[1751488112547,23.38616258,2597.7,2597.6,0.76944]
[1751488112848,28.38616258,2597.7,2597.5,0.76945]
[1751488113048,23.39016258,2597.5,2596.9,0.35245245]
[1751488113346,1.65081,2597.4,2597.3,0.76953]
[1751488113548,11.979,2598.0,2597.8,0.76936]
[1751488113745,19.2496,2597.9,2597.8,0.76936]
[1751488113949,4.14136258,2597.9,2597.8,0.76936]
[1751488114248,23.38776258,2597.9,2597.8,0.76936]
[1751488114549,41.605,2598.7,2598.6,0.76914]
[1751488114746,3.20556258,2598.7,2598.6,0.76914]
[1751488114948,21.44636258,2598.7,2598.6,0.76914]
[1751488115350,2.5046,2599.6,2599.5,0.76888]
[1751488115545,6.8992402,2600.2,2599.2,1.92242]
[1751488115746,6.8992402,2600.2,2598.9,6.8992402]
[1751488115952,0.41819258,2599.6,2599.5,0.76888]
[1751488116253,11.976,2600.6,2600.4,0.7686]
[1751488116453,19.2304,2600.5,2600.2,0.76865]
[1751488116653,19.228,2600.3,2600.2,0.76867]
[1751488117052,26.9501,2600.3,2600.2,0.76867]
[1751488117248,18.77276817,2600.2,2599.5,1.9222]
[1751488117445,2.7221,2600.1,2599.3,1.92235]
[1751488117648,21.49486817,2600.1,2599.3,1.92235]
[1751488117849,18.77276817,2600.0,2599.9,0.76875]
[1751488118046,21.49486817,2600.0,2599.9,0.76875]
[1751488118248,18.77276817,2600.0,2599.9,0.76875]
[1751488118949,11.97,2600.7,2600.6,0.76855]
[1751488119354,29.73489817,2600.7,2600.6,0.76855]
[1751488120159,32.33509817,2600.7,2600.6,0.76855]
[1751488120958,32.33509817,2600.7,2599.9,1.92191]
[1751488121153,17.76489817,2600.6,2600.5,0.76857]
[1751488121357,20.36509817,2600.6,2600.5,0.76857]
[1751488121550,11.966,2601.3,2600.7,0.76852]
[1751488121750,14.4849,2601.6,2600.8,1.9212]
[1751488121951,0.7683,2601.5,2600.5,9.58915759]
[1751488122153,7.66775759,2601.3,2600.0,1.92177]
[1751488122354,7.66775759,2601.0,2600.6,7.64316719]
[1751488122758,0.76851,2600.8,2600.7,1.53776747]
[1751488122959,2.528,2600.9,2600.7,1.53776747]
[1751488123160,2.528,2600.9,2600.5,7.64316719]
[1751488123361,2.528,2600.9,2600.6,0.76855]
[1751488123561,6.73597618,2601.0,2600.6,0.76854]
[1751488123764,6.73597618,2601.0,2600.5,7.64316719]
[1751488123765,0.76841,2601.1,2600.5,7.64316719]
[1751488124058,0.76846,2601.0,2600.7,0.76852]
[1751488124365,11.966,2601.2,2601.1,0.7684]
[1751488124557,11.966,2601.2,2601.0,0.76843]
[1751488124959,11.966,2601.2,2600.9,0.76845]
[1751488125161,11.966,2601.2,2600.8,0.56948539]
[1751488125561,0.76841,2601.1,2600.9,1.33793539]
[1751488125760,0.76841,2601.1,2600.9,0.76845]
[1751488125968,0.76846,2601.0,2600.8,8.41165719]
[1751488126168,0.76846,2601.0,2600.8,8.41164719]
[1751488126363,0.76843,2601.1,2600.9,0.76846]
[1751488126864,2.5458,2601.0,2600.8,0.76848]
[1751488127065,3.31426,2601.0,2600.9,0.76847]
[1751488127367,2.5458,2601.0,2600.9,0.76847]
[1751488127664,3.31424,2601.0,2600.8,0.76848]
[1751488127864,3.31424,2601.0,2600.8,1.33796539]
[1751488128058,3.31424,2601.0,2600.9,0.76847]
[1751488128262,0.76842,2601.1,2600.9,0.76847]
[1751488128459,0.76841,2601.1,2601.0,3.65646887]
[1751488129268,11.966,2601.2,2600.8,0.76849]
[1751488129466,11.966,2601.2,2600.7,3.65646887]
[1751488129665,11.966,2601.2,2600.7,4.99445426]
[1751488129964,0.76847,2600.9,2600.7,4.99445426]
[1751488130164,0.76849,2600.8,2600.7,4.99445426]
[1751488130367,0.76849,2600.8,2600.7,1.33798539]
[1751488130969,0.76847,2600.9,2600.8,0.76849]
[1751488131164,0.76847,2600.9,2600.8,4.43276213]
[1751488131467,0.76847,2600.9,2600.8,0.76849]
[1751488131668,13.88697,2601.2,2600.7,0.76851]
[1751488131669,0.7685,2600.8,2600.7,0.76851]
[1751488131967,1.92105,2601.1,2600.6,1.33801539]
[1751488132168,1.8174,2601.0,2600.7,0.76852]
[1751488132370,0.76851,2600.8,2600.7,0.56948539]
[1751488132566,0.76851,2600.8,2600.7,1.33800539]
[1751488132869,0.76851,2600.8,2600.7,0.56948539]
[1751488133268,1.92117,2600.9,2600.6,5.11631202]
[1751488133471,1.04743213,2600.9,2600.6,5.11631202]
[1751488133666,0.76852,2600.7,2600.6,5.11631202]
[1751488133861,0.76852,2600.7,2600.5,5.88488202]
[1751488134068,13.8786,2601.7,2600.9,1.92116]
[1751488134268,13.8786,2601.7,2601.3,0.76834]
[1751488134469,13.8786,2601.7,2601.0,0.56948539]
[1751488134470,0.76836,2601.3,2601.2,3.68539513]
[1751488134670,0.76837,2601.3,2601.2,0.76836]
[1751488134870,0.76838,2601.2,2601.1,0.76839]
[1751488135069,0.76837,2601.3,2601.2,0.76836]
[1751488135270,11.958,2601.7,2601.2,1.53728167]
[1751488135472,2.5209,2602.0,2601.3,3.89356706]
[1751488135671,2.01945,2601.9,2601.4,7.22307908]
[1751488135870,0.76828,2601.6,2601.5,2.30555167]
[1751488136271,0.76826,2601.6,2601.5,2.87503706]
[1751488136573,0.76826,2601.6,2601.5,3.89356706]
[1751488136973,2.01945,2601.9,2601.5,3.89356706]
[1751488137169,0.099,2601.9,2601.8,1.33768539]
[1751488137475,1.91984,2602.7,2601.8,1.53705028]
[1751488137676,0.76802,2602.4,2602.3,5.21826794]
[1751488137974,5.76802,2602.4,2602.3,6.75531822]
[1751488138175,0.76802,2602.4,2602.3,1.53705028]
[1751488138371,0.76802,2602.4,2602.3,6.75540524]
[1751488138778,0.76814,2602.0,2601.9,7.30901718]
[1751488138972,0.76835,2601.3,2601.2,1.856]
[1751488139276,0.76835,2601.3,2601.2,2.42548539]
[1751488139475,0.76835,2601.3,2601.2,3.19386539]
[1751488139876,1.92053,2601.8,2601.2,3.19386539]
[1751488140079,0.76834,2601.4,2601.3,5.79397308]
[1751488140375,0.76834,2601.4,2601.3,6.56232308]
[1751488140576,0.76834,2601.4,2601.3,4.87168948]
[1751488140776,1.92053,2601.8,2601.3,1.33783539]
[1751488140978,0.76829,2601.5,2601.4,0.96312269]
[1751488141172,0.76831,2601.5,2601.4,0.53316212]
[1751488141368,0.76831,2601.5,2601.4,0.72796481]
[1751488141573,11.886,2601.9,2601.4,1.49628481]
[1751488141780,0.76826,2601.6,2601.5,4.4610499]
[1751488142176,0.76826,2601.6,2601.5,5.2293399]
[1751488142375,0.76826,2601.6,2601.5,0.72796481]
[1751488143076,0.76826,2601.6,2601.5,1.49625481]
[1751488143279,0.76826,2601.6,2601.5,0.72796481]
[1751488143475,1.92051,2601.8,2601.5,0.53316212]
[1751488143781,0.76823,2601.7,2601.6,4.27133137]
[1751488143984,0.76823,2601.7,2601.6,0.53316212]
[1751488144175,0.76823,2601.7,2601.6,4.27133137]
[1751488144383,0.76838,2601.2,2601.1,0.76839]
[1751488144582,0.76833,2601.4,2601.1,0.54078577]
[1751488144782,0.76833,2601.4,2601.2,0.54078577]
[1751488144983,1.92056,2601.8,2601.3,0.34598308]
[1751488145282,0.76829,2601.5,2601.4,1.11428308]
[1751488145477,0.76829,2601.6,2601.5,0.76828]
[1751488145676,0.76829,2601.6,2601.5,0.34598308]
[1751488146377,1.9206,2601.7,2601.3,0.76833]
[1751488146580,0.76834,2601.4,2601.3,0.76833]
[1751488146776,0.76834,2601.4,2601.3,1.27903474]
[1751488146985,0.7683,2601.5,2601.4,0.76829]
[1751488147186,50.029,2601.9,2601.5,0.76826]
[1751488147187,0.76828,2601.6,2601.5,0.76826]
[1751488147381,0.76828,2601.6,2601.5,1.27896474]
[1751488147582,0.76828,2601.6,2601.5,0.96306269]
[1751488147887,0.76823,2601.8,2601.7,0.7682]
[1751488148777,0.76825,2601.7,2601.6,0.76823]
[1751488148986,0.76826,2601.6,2601.5,0.19480269]
[1751488149184,1.92052,2601.8,2601.6,0.19480269]
[1751488149484,1.92021,2602.2,2601.5,0.19480269]
[1751488149686,1.92061,2601.7,2601.3,5.25787758]
[1751488149878,0.76832,2601.4,2601.3,5.25787758]
[1751488150085,0.76841,2601.1,2601.0,6.02628758]
[1751488150287,0.76838,2601.2,2601.1,0.76838]
[1751488150478,0.76838,2601.2,2601.1,0.96318269]
[1751488150680,0.76837,2601.3,2601.2,0.76837]
[1751488150881,39.95345,2601.9,2601.5,0.76829]
[1751488151087,0.76823,2601.7,2601.6,1.51287113]
[1751488151491,5.76823,2601.7,2601.6,1.51287113]
[1751488151879,0.76826,2601.6,2601.5,0.76828]
[1751488152084,0.76831,2601.5,2601.1,1.92101]
[1751488152285,0.76831,2601.5,2601.4,0.76829]
[1751488152587,1.93403911,2601.5,2601.4,0.76829]
[1751488153182,1.16572911,2601.5,2601.4,0.76829]
[1751488153382,1.93401911,2601.5,2601.4,0.76829]
[1751488153690,0.76834,2601.4,2601.3,0.76833]
[1751488153887,1.93406911,2601.4,2601.3,0.96313269]
[1751488154284,1.16572911,2601.4,2601.3,0.96313269]
[1751488154489,3.06166085,2601.5,2601.3,5.0]
[1751488154697,3.06166085,2601.5,2601.4,2.78262269]
[1751488154897,0.76813,2602.1,2602.0,0.76814]
[1751488155492,11.885,2602.2,2602.1,0.76811]
[1751488155692,11.885,2602.2,2602.1,2.84431269]
[1751488156198,0.76799,2602.6,2602.5,0.76799]
[1751488156397,0.76799,2602.6,2602.2,1.92017]
[1751488156398,12.65296,2602.7,2602.6,0.76796]
[1751488156697,12.65296,2602.7,2602.3,1.92014]
[1751488156698,0.76798,2602.6,2602.5,0.76798]
[1751488157092,12.65296,2602.7,2602.6,0.76796]
[1751488157297,11.885,2602.7,2602.6,0.96276269]
[1751488157494,0.76798,2602.6,2602.5,0.76797]
[1751488157689,0.76799,2602.5,2602.4,0.19480269]
[1751488157890,7.66775759,2602.5,2600.4,7.66775759]
[1751488158089,4.21526308,2601.6,2600.8,1.92124]
[1751488158393,1.92076,2601.5,2600.7,0.19480269]
[1751488158590,0.76849,2600.9,2600.8,0.96328269]
[1751488158793,0.76849,2600.9,2600.8,0.76848]
[1751488158995,2.29454308,2600.9,2600.8,0.96328269]
[1751488159201,2.29454308,2601.1,2600.8,0.19480269]
[1751488159401,2.29454308,2601.0,2600.9,2.70277269]
[1751488159597,0.76844,2601.0,2600.9,1.93430269]
[1751488160600,0.76844,2601.0,2600.9,2.70277269]
[1751488161090,3.6454,2601.5,2600.9,1.93430269]
[1751488161295,0.76839,2601.2,2601.1,0.7684]
[1751488161495,0.76839,2601.2,2601.1,1.7261]
[1751488161796,38.57937,2601.3,2601.2,0.76835]
[1751488161994,0.76838,2601.2,2601.1,2.68928269]
[1751488162900,0.76838,2601.2,2601.1,1.92090269]
[1751488163302,37.804,2601.2,2601.1,2.68931269]
[1751488164001,0.76838,2601.2,2601.1,2.68931269]
[1751488164198,3.82835507,2601.3,2601.2,0.76838]
[1751488164394,3.82835507,2601.5,2601.4,0.76832]
[1751488164602,3.82835507,2601.5,2601.4,0.96312269]
[1751488164803,0.76829,2601.5,2601.4,0.19480269]
[1751488165404,0.76829,2601.5,2601.4,0.96312269]
[1751488165708,0.76829,2601.5,2601.4,1.97860269]
[1751488165898,0.76837,2601.3,2600.9,1.92117]
[1751488166099,3.06532319,2601.3,2601.2,0.76836]
[1751488166300,0.76837,2601.3,2601.2,0.76836]
[1751488166495,1.8674905,2601.3,2601.2,0.19480269]
[1751488166704,1.8674905,2601.3,2601.2,0.96318269]
[1751488167400,1.8674905,2601.3,2601.2,0.19480269]
[1751488167595,1.8674905,2601.3,2601.2,0.96318269]
[1751488167801,1.0991205,2601.3,2601.2,0.96318269]
[1751488168401,1.8674705,2601.3,2601.2,0.19480269]
[1751488168602,1.8674705,2601.3,2601.2,0.96318269]
[1751488169805,1.8674705,2601.3,2601.2,0.19480269]
[1751488170209,1.8674705,2601.3,2601.2,0.96318269]
[1751488172306,1.8674705,2601.3,2601.2,0.19480269]
[1751488172804,1.8674705,2601.3,2601.2,0.96318269]
[1751488173802,1.8674705,2601.3,2601.2,0.19480269]
[1751488176103,1.8674705,2601.3,2601.2,0.96318269]
[1751488176301,1.8674705,2601.3,2601.2,0.19480269]
[1751488178515,0.76841,2601.1,2601.0,2.55221]
[1751488178715,0.76841,2601.1,2601.0,2.74701269]
[1751488178913,1.8675305,2601.1,2601.0,2.74701269]
[1751488179414,1.8675305,2601.1,2600.1,13.5459]
[1751488179415,0.76849,2600.9,2600.6,2.29167]
[1751488179616,0.76849,2600.9,2600.8,0.76845]
[1751488179913,0.76853,2600.8,2600.7,0.19480269]
[1751488180218,1.86905469,2600.8,2600.7,0.76851]
[1751488180414,1.86905469,2600.8,2600.7,0.96331269]
[1751488180609,0.76853,2600.7,2600.6,0.3703]
[1751488180813,1.86905469,2600.7,2600.6,1.13886]
[1751488181014,1.86905469,2600.7,2600.6,0.56510269]
[1751488181420,1.86905469,2600.7,2600.6,1.33366269]
[1751488182019,0.76853,2600.7,2600.6,1.33366269]
[1751488182514,0.76853,2600.7,2600.6,0.56510269]
[1751488182721,1.8117248,2600.7,2600.6,0.3703]
[1751488183522,0.76867,2600.3,2600.2,0.76865]
[1751488183716,0.76867,2600.3,2600.2,2.47975]
[1751488183915,0.76873,2600.1,2600.0,0.76872]
[1751488184119,0.76873,2600.1,2600.0,0.19480269]
[1751488184414,0.76873,2600.1,2600.0,0.96353269]
[1751488184814,0.76876,2599.9,2599.8,1.7111]
[1751488185020,0.76876,2599.9,2599.8,1.90590269]
[1751488185216,0.76873,2600.1,2600.0,0.7687]
[1751488185517,11.754,2600.1,2600.0,0.96350269]
[1751488186015,2.29695319,2600.8,2600.0,0.19480269]
[1751488186221,2.29695319,2601.1,2600.7,0.19480269]
[1751488186421,1.04224597,2601.0,2600.9,0.76847]
[1751488186616,1.81068597,2601.0,2600.9,1.7187]
[1751488186810,1.81068597,2601.0,2600.9,2.68197269]
[1751488187119,1.81068597,2601.0,2600.9,1.91350269]
[1751488187517,1.81068597,2601.0,2600.9,2.48717]
[1751488188020,1.04224597,2601.0,2600.9,2.48717]
[1751488188417,1.04224597,2601.0,2600.9,2.68197269]
[1751488189818,1.81068597,2601.0,2600.9,2.68197269]
[1751488190521,1.04224597,2601.0,2600.9,2.68197269]
[1751488192927,1.81068597,2601.0,2600.9,2.68197269]
[1751488193328,1.81068597,2601.0,2600.9,0.96327269]
[1751488194028,0.76853,2600.8,2600.6,1.7253]
[1751488194228,0.76853,2600.8,2600.0,3.84364]
[1751488194229,2.96357597,2600.7,2600.0,1.92183]
[1751488194425,0.76864,2600.4,2600.3,0.76861]
[1751488194620,0.76866,2600.3,2600.2,0.76864]
[1751488194820,1.81006235,2600.3,2600.2,0.96344269]
[1751488195229,1.04140235,2600.3,2600.2,0.96344269]
[1751488195427,2.44981,2600.5,2600.4,0.76861]
[1751488195621,3.49104358,2600.5,2600.4,0.76861]
[1751488197328,1.04123358,2600.5,2600.4,0.96341269]
[1751488199931,1.80981358,2600.5,2600.4,0.96341269]
[1751488200434,1.04123358,2600.5,2600.4,0.96341269]
[1751488200632,1.80981358,2600.5,2600.4,0.96341269]
[1751488200933,1.04123358,2600.5,2600.4,0.96341269]
[1751488201229,1.04123358,2600.5,2600.4,13.63117028]
[1751488201433,55.36,2600.9,2600.8,0.7685]
[1751488201625,55.36,2600.9,2600.8,0.96330269]
[1751488201830,56.12847,2600.9,2600.8,0.96330269]
[1751488203532,56.12847,2600.9,2600.8,0.19480269]
[1751488203930,56.12847,2600.9,2600.8,0.96330269]
[1751488204134,56.12847,2600.9,2600.8,2.64660269]
[1751488204831,56.12847,2600.9,2600.8,1.87810269]
[1751488205236,56.12847,2600.9,2600.8,2.64660269]
[1751488205834,1.7592,2601.0,2600.9,0.76847]
[1751488206036,0.00576967,2601.1,2601.0,0.76844]
[1751488206236,0.00576967,2601.1,2601.0,8.63100028]
[1751488206835,0.00576967,2601.1,2601.0,0.96324269]
[1751488208839,0.77417967,2601.1,2601.0,0.19480269]
[1751488209041,0.76844,2601.0,2600.9,2.45177]
[1751488210341,0.00576967,2601.1,2601.0,0.76844]
[1751488210541,0.00576967,2601.1,2601.0,2.56474269]
[1751488210736,2.29695319,2601.6,2601.0,15.23250028]
[1751488210938,0.76838,2601.2,2601.1,0.19480269]
[1751488211240,0.76838,2601.2,2601.1,0.96319269]
[1751488211443,0.76838,2601.2,2601.1,0.76839]
[1751488211631,0.76841,2601.1,2601.0,1.6015]
[1751488213038,0.76847,2600.9,2600.1,1.92173]
[1751488213342,0.76861,2600.5,2600.4,0.7686]
[1751488213737,1.80355013,2600.5,2600.4,0.96340269]
[1751488214737,0.76872,2600.1,2599.7,3.59185]
[1751488215037,12.64326981,2600.0,2598.7,3.76604484]
[1751488215243,0.76886,2599.6,2599.4,0.7689]
[1751488215443,1.03526981,2599.5,2599.3,0.76891]
[1751488215643,36.987,2599.8,2599.4,1.7241]
[1751488215846,0.76887,2599.6,2599.5,0.19480269]
[1751488216140,1.80413156,2599.6,2599.5,0.19480269]
[1751488216339,1.03526156,2599.6,2598.9,1.6911]
[1751488216537,1.80416156,2599.5,2599.3,0.76893]
[1751488216737,0.7689,2599.5,2599.3,0.76893]
[1751488216938,0.7689,2599.5,2599.4,0.19480269]
[1751488217441,0.76891,2599.4,2599.2,0.76895]
[1751488217634,9.58981759,2599.7,2599.0,0.19480269]
[1751488217831,0.76898,2599.2,2599.0,0.76901]
[1751488218042,0.76897,2599.2,2599.1,1.88590269]
[1751488218241,0.76902,2599.1,2598.8,0.76908]
[1751488218438,0.76902,2599.1,2598.4,1.88590269]
[1751488218439,1.6891,2599.1,2598.4,1.88590269]
[1751488218636,1.7404,2599.0,2598.5,0.19480269]
[1751488218941,1.7404,2599.0,2598.6,1.6965]
[1751488219140,2.50946,2599.0,2598.8,0.76909]
[1751488219340,1.6891,2599.1,2598.7,0.19480269]
[1751488219643,55.367,2599.8,2599.7,0.76882]
[1751488222847,0.76869,2600.2,2599.7,2.11680269]
[1751488223046,0.76866,2600.3,2600.2,0.76865]
[1751488223845,11.451,2600.5,2600.2,0.19480269]
[1751488224042,11.451,2600.5,2600.4,0.76861]
[1751488224245,1.6151,2600.6,2600.5,0.76859]
[1751488224544,1.6151,2600.6,2600.5,2.58739269]
[1751488224745,2.38366,2600.6,2600.5,2.58739269]
[1751488225446,2.47531,2600.8,2600.7,0.76853]
[1751488225647,40.46254057,2600.8,2600.7,0.76853]
[1751488225847,40.46255057,2600.8,2600.7,0.76853]
[1751488226048,0.76854,2600.7,2600.6,0.76855]
[1751488226247,0.76854,2600.7,2600.6,0.96335269]
[1751488226748,0.76854,2600.7,2600.6,0.19480269]
[1751488227651,0.76859,2600.5,2600.4,0.7686]
[1751488228046,0.76859,2600.5,2600.4,0.96340269]
[1751488229048,0.76865,2600.3,2600.2,2.39596]
[1751488229246,0.76859,2600.6,2600.5,0.76858]
[1751488229446,0.76862,2600.4,2600.3,0.19480269]
[1751488229647,0.76869,2600.2,2599.7,1.6754]
[1751488229948,0.76866,2600.3,2600.2,0.76865]
[1751488230350,0.76866,2600.3,2600.2,0.19480269]
[1751488230548,0.76866,2600.3,2600.2,0.96348269]
[1751488231847,0.76866,2600.3,2600.2,0.19480269]
[1751488232247,2.47426,2600.3,2600.2,0.19480269]
[1751488232746,0.76881,2599.8,2599.7,0.76879]
[1751488232952,0.76881,2599.8,2599.7,2.44189]
[1751488233150,0.76881,2599.8,2599.7,2.63669269]
[1751488234155,0.76891,2599.5,2599.4,0.76889]
[1751488234444,0.76893,2599.4,2599.3,0.76892]
[1751488234749,37.56987,2599.6,2599.5,0.76888]
[1751488234951,37.56987,2599.6,2599.5,0.96368269]
[1751488235345,37.56987,2599.6,2599.5,0.76888]
[1751488235751,0.76892,2599.5,2599.4,0.76889]
[1751488236248,0.76892,2599.5,2599.4,0.96369269]
[1751488236753,36.797,2599.5,2599.4,0.96369269]
[1751488237047,37.56588,2599.5,2599.4,0.19480269]
[1751488237352,0.76894,2599.3,2599.2,1.5883]